bitfinex/quotes_ETHUSD_20220308
["timestamp","ask_amount","ask_price","bid_price","bid_amount"]
[1646776755762,12.91922472,2563.2,2562.4,1.2]
[1646776755961,0.72252884,2563.1,2562.4,1.2]
[1646776756261,13.5036441,2563.2,2562.4,1.2]
[1646776756709,13.50056938,2563.2,2562.4,1.2]
[1646776757113,13.5036441,2563.2,2562.4,1.2]
[1646776757512,17.24331723,2563.2,2562.4,1.2]
[1646776758011,17.24024251,2563.2,2562.4,1.2]
[1646776758210,17.24332872,2563.2,2562.4,1.2]
[1646776758810,11.94,2563.0,2562.4,1.2]
[1646776759010,0.97638,2562.9,2562.4,1.2]
[1646776759210,0.86327206,2562.8,2562.4,1.2]
[1646776759917,12.80327206,2562.8,2562.4,1.2]
[1646776760111,0.95182136,2562.5,2562.4,1.2]
[1646776760372,0.95182136,2562.5,2561.6,0.3902]
[1646776760373,11.94,2562.2,2561.6,0.3902]
[1646776760575,0.95177655,2562.0,2561.6,0.3902]
[1646776760772,0.95177655,2561.8,2561.7,0.00310972]
[1646776761471,1.92857655,2561.8,2561.7,0.00310972]
[1646776761675,1.92857655,2561.8,2561.1,1.1354]
[1646776761874,1.92857655,2561.8,2561.6,0.00310675]
[1646776762280,0.95177655,2561.7,2561.6,0.00310675]
[1646776762474,3.5,2561.7,2561.6,0.00310675]
[1646776762673,1.92857655,2561.8,2561.6,0.00310675]
[1646776762875,1.92857655,2561.8,2560.9,2.4408]
[1646776762876,0.97685,2561.5,2560.9,2.4408]
[1646776763076,1.84392687,2561.5,2560.5,0.9050647]
[1646776763276,1.84392687,2561.5,2560.6,5.6324]
[1646776763876,2.79570342,2561.5,2560.6,5.6324]
[1646776764119,2.14392687,2561.5,2560.6,5.6324]
[1646776764318,0.9769,2561.3,2560.9,0.00310525]
[1646776764718,1.2769,2561.3,2560.9,0.00310525]
[1646776765118,1.2769,2561.3,2560.6,4.0359]
[1646776765319,0.9769,2561.3,2560.6,4.0359]
[1646776765618,0.9769,2561.3,2561.0,0.00311108]
[1646776766318,0.9769,2561.3,2560.6,4.0359]
[1646776766722,0.9769,2561.3,2561.0,0.00312396]
[1646776767622,0.9769,2561.3,2560.6,4.0359]
[1646776767855,0.9769,2561.3,2561.0,0.00312396]
[1646776768655,3.5,2561.2,2561.0,0.00312396]
[1646776768855,5.45395,2561.2,2560.6,4.0359]
[1646776769059,6.75395,2561.2,2561.0,0.00311727]
[1646776769355,3.5,2561.1,2561.0,0.00311727]
[1646776769758,4.5,2561.1,2561.0,0.00311727]
[1646776769961,3.5,2561.1,2560.3,1.1451]
[1646776770157,1.63868811,2560.9,2560.3,1.1451]
[1646776770357,3.5,2560.8,2560.2,1.4297]
[1646776770657,3.5,2560.8,2560.2,1.1297]
[1646776771512,3.5,2560.8,2560.4,0.00311567]
[1646776772515,0.61302145,2560.7,2560.2,1.1297]
[1646776772912,0.61302145,2560.7,2560.5,0.003119]
[1646776774013,0.61302145,2560.7,2560.5,0.00311945]
[1646776774813,0.61302145,2560.7,2560.2,1.1297]
[1646776775017,0.61302145,2560.7,2560.5,0.00311945]
[1646776776057,0.61302145,2560.7,2560.2,1.1297]
[1646776776256,0.61302145,2560.7,2560.5,0.00311661]
[1646776777262,0.61302145,2560.7,2560.2,1.1297]
[1646776777464,0.61302145,2560.7,2560.5,0.0031052]
[1646776778265,0.91302145,2560.7,2560.5,0.0031052]
[1646776778565,0.91302145,2560.7,2560.2,1.1297]
[1646776778764,0.91302145,2560.7,2560.5,0.0031052]
[1646776779214,0.61302145,2560.7,2560.5,0.0031052]
[1646776779615,0.61302145,2560.7,2560.2,1.1297]
[1646776779815,0.61302145,2560.7,2560.5,0.003106]
[1646776780916,0.61302145,2560.7,2560.2,1.1297]
[1646776781116,0.61302145,2560.7,2560.5,0.00311514]
[1646776781322,3.12475483,2561.6,2560.5,0.00311514]
[1646776781519,5.23089997,2561.7,2560.5,0.00311514]
[1646776782024,5.23089997,2561.7,2560.7,0.81772159]
[1646776782323,0.13819997,2561.7,2560.7,0.81772159]
[1646776782523,0.13819997,2561.7,2561.0,0.0031149]
[1646776783156,0.13819997,2561.7,2560.8,1.2219]
[1646776783357,2.02837932,2561.7,2560.8,1.2219]
[1646776783557,2.02837932,2561.7,2561.2,0.00311435]
[1646776784358,2.02837932,2561.7,2560.8,1.2219]
[1646776784758,2.02837932,2561.7,2561.3,0.00310539]
[1646776785563,2.02837932,2561.7,2560.8,1.2219]
[1646776785961,2.02837932,2561.7,2561.4,0.00310537]
[1646776786813,2.02837932,2561.7,2560.8,1.2219]
[1646776787013,2.02837932,2561.7,2561.4,0.00310568]
[1646776788017,2.02837932,2561.7,2560.8,1.2219]
[1646776788220,2.02837932,2561.7,2561.4,0.00310565]
[1646776789317,2.02837932,2561.7,2560.8,1.2219]
[1646776789616,2.02837932,2561.7,2561.4,0.00310565]
[1646776790466,2.02837932,2561.7,2560.8,1.2219]
[1646776790669,2.02837932,2561.7,2561.4,0.0031056]
[1646776790671,3.5,2561.6,2561.4,0.0031056]
[1646776790879,3.5,2561.6,2561.4,0.00200952]
[1646776790880,13.89398,2561.5,2561.4,0.00200952]
[1646776791068,17.57645399,2561.5,2561.4,0.00200952]
[1646776791267,11.94,2561.3,2560.2,1.1936]
[1646776791474,0.97715,2560.9,2560.2,1.1936]
[1646776791669,5.8154434,2561.2,2560.2,1.1936]
[1646776791670,4.3753276,2560.8,2560.2,1.1936]
[1646776791869,4.6753276,2560.8,2560.2,1.1936]
[1646776792271,5.6753276,2560.8,2560.2,1.1936]
[1646776793474,0.97716,2560.7,2560.2,1.1936]
[1646776793872,3.5,2560.6,2560.0,2.7344]
[1646776794109,3.8,2560.6,2560.0,2.7344]
[1646776794309,3.8,2560.6,2560.3,0.00147199]
[1646776794310,4.8,2560.6,2560.3,0.00147199]
[1646776794510,0.97726,2560.4,2560.3,0.00147199]
[1646776794711,1.27726,2560.4,2560.3,0.00147199]
[1646776794911,4.77726,2560.4,2560.3,0.00147199]
[1646776795109,1.27726,2560.4,2559.9,1.2148]
[1646776795310,6.65146328,2560.4,2559.9,1.2148]
[1646776795510,2.15146328,2560.4,2560.2,0.00364962]
[1646776795711,3.15146328,2560.4,2560.2,0.00364962]
[1646776795911,2.15146328,2560.4,2560.2,0.00364962]
[1646776796310,5.65146328,2560.4,2560.2,0.00364962]
[1646776796509,2.15146328,2560.4,2559.9,1.2148]
[1646776796714,6.65146328,2560.4,2560.2,0.00364964]
[1646776796914,3.5,2560.3,2560.2,0.00364964]
[1646776797316,4.5,2560.3,2560.2,0.00364964]
[1646776797514,1.0,2560.7,2560.2,0.00364964]
[1646776797778,0.3,2560.7,2559.9,1.2148]
[1646776797967,0.3,2560.7,2560.1,0.00364967]
[1646776798166,4.8,2560.8,2560.1,0.00364967]
[1646776798771,4.8,2560.8,2560.0,0.92026587]
[1646776799168,4.8,2560.8,2560.3,0.00358113]
[1646776799971,4.8,2560.8,2560.0,0.92026587]
[1646776800172,4.8,2560.8,2560.0,0.87991966]
[1646776800371,4.8,2560.8,2560.4,0.00358108]
[1646776800972,1.3,2560.8,2560.4,0.00358108]
[1646776801172,1.0,2560.8,2559.9,1.2148]
[1646776801378,0.3,2560.8,2559.9,1.2148]
[1646776801618,7.09355611,2561.0,2560.5,0.00358105]
[1646776802019,19.03355611,2561.0,2560.5,0.00358105]
[1646776802218,19.68004951,2561.0,2560.5,0.00358105]
[1646776802617,12.8864934,2560.8,2560.5,0.00358105]
[1646776802819,12.8864934,2560.8,2559.2,1.5583]
[1646776802820,6.29631667,2560.7,2560.6,0.01646177]
[1646776803021,8.45478,2560.6,2559.2,2.7108]
[1646776803220,0.95084399,2560.3,2559.2,2.7108]
[1646776803419,3.5,2560.2,2559.2,2.7108]
[1646776803618,11.94,2560.1,2559.2,2.7108]
[1646776803818,12.24,2560.1,2559.6,0.1273213]
[1646776804022,14.98831039,2560.1,2559.6,0.13036689]
[1646776804220,14.98831039,2560.1,2559.6,0.00304559]
[1646776804221,0.97742,2559.9,2559.6,0.00304559]
[1646776804519,1.27742,2559.9,2559.6,0.00304559]
[1646776804918,1.27742,2559.9,2559.2,1.1525]
[1646776805375,1.27742,2559.9,2559.6,0.13036689]
[1646776805675,1.27742,2559.9,2559.6,0.00304559]
[1646776806075,1.27742,2559.9,2558.9,1.59745476]
[1646776806279,13.21742,2559.9,2559.0,0.73672019]
[1646776806476,0.97748,2559.7,2559.6,0.00308644]
[1646776807284,0.97748,2559.7,2559.4,0.1273213]
[1646776807480,0.97748,2559.7,2558.8,1.1597]
[1646776807681,0.97748,2559.7,2559.5,0.00341569]
[1646776808482,1.866748,2559.7,2559.6,0.1273213]
[1646776808687,13.806748,2559.7,2558.8,1.1597]
[1646776808883,15.28922199,2559.7,2559.5,0.00341571]
[1646776809118,13.89521,2559.6,2559.5,0.00341571]
[1646776809325,15.62324094,2559.6,2559.5,0.00341571]
[1646776809519,16.09430578,2559.6,2559.5,0.00341571]
[1646776809719,16.09430578,2559.6,2558.8,1.1597]
[1646776809720,0.97773,2559.5,2558.8,1.1597]
[1646776810121,0.97773,2559.5,2559.2,0.1273213]
[1646776810122,0.9777,2559.3,2559.2,0.1273213]
[1646776810324,0.9777,2559.3,2558.8,1.1597]
[1646776810727,11.94,2559.2,2558.2,0.3907]
[1646776810923,13.89576,2559.0,2557.9,1.2492]
[1646776811122,11.94,2558.8,2558.0,1.59775805]
[1646776811321,12.94,2558.8,2558.0,1.59775805]
[1646776811523,12.94,2558.8,2558.4,0.1273213]
[1646776811724,12.94,2558.8,2558.1,0.86434694]
[1646776812324,0.97792,2558.6,2558.5,0.00339612]
[1646776812966,1.26651085,2558.6,2558.5,0.00339612]
[1646776813766,1.26651085,2558.6,2558.4,0.00340164]
[1646776814569,0.36401547,2558.2,2558.0,3.5]
[1646776814767,0.28859085,2558.6,2558.4,0.00316747]
[1646776815364,0.28859085,2558.6,2558.5,0.91048919]
[1646776815766,2.74620324,2559.5,2558.5,0.91048919]
[1646776815767,0.18247399,2559.5,2558.5,0.91048919]
[1646776816077,2.07252844,2559.7,2558.7,0.3918]
[1646776816078,0.20374554,2559.7,2558.7,0.3918]
[1646776816269,0.13819997,2559.8,2558.9,0.3918]
[1646776816522,0.18247399,2560.3,2558.7,0.4273213]
[1646776816523,0.95084399,2560.3,2560.2,0.71182798]
[1646776816722,0.25321948,2560.1,2559.3,0.3918]
[1646776816919,0.20321948,2560.1,2559.5,0.3918]
[1646776817125,0.95084399,2560.6,2559.8,5.3918]
[1646776817322,0.20363619,2560.8,2559.9,3.8918]
[1646776817521,0.20363619,2560.8,2560.0,0.47]
[1646776817720,1.42728667,2561.5,2560.4,0.1273213]
[1646776817721,0.95084399,2561.3,2560.4,0.1273213]
[1646776817924,0.95084399,2561.4,2560.4,0.5191213]
[1646776818122,0.95084399,2561.4,2560.5,3.5]
[1646776818323,0.95084399,2561.5,2560.5,3.8]
[1646776818522,0.95084399,2561.5,2561.1,0.69946673]
[1646776819121,0.95084399,2561.5,2560.5,4.1918]
[1646776819321,0.95084399,2561.5,2561.3,0.1273213]
[1646776819523,0.36401547,2561.4,2561.2,0.00340489]
[1646776820577,0.18247399,2561.3,2560.5,0.3]
[1646776820875,0.36401547,2561.4,2561.2,0.00339628]
[1646776821676,0.36401547,2561.4,2560.1,0.3918]
[1646776821876,0.36401547,2561.4,2560.3,0.3918]
[1646776822076,0.36401547,2561.4,2561.2,0.86014698]
[1646776822675,0.36401547,2561.4,2561.2,0.00307324]
[1646776822878,0.36401547,2561.4,2560.5,0.3918]
[1646776823077,0.36401547,2561.4,2560.2,4.7488]
[1646776823377,0.36401547,2561.4,2561.2,0.00122136]
[1646776823877,0.36401547,2561.4,2561.3,0.1273213]
[1646776831722,0.36401547,2561.4,2561.3,0.08245984]
[1646776838481,0.38100816,2561.4,2561.3,0.08245984]
[1646776845480,0.95257567,2562.0,2561.4,4.8918]
[1646776845481,0.00173168,2562.0,2561.4,4.8918]
[1646776845678,1.34174399,2562.1,2561.4,4.8918]
[1646776845881,1.34174399,2562.1,2561.6,0.08245984]
[1646776845882,0.3909,2562.1,2561.6,0.08245984]
[1646776846080,0.3909,2562.1,2561.4,5.1918]
[1646776846526,0.95084399,2562.3,2561.4,5.1918]
[1646776846729,0.95084399,2562.3,2562.0,1.0986169]
[1646776846928,0.95084399,2562.3,2562.0,0.71223179]
[1646776847430,0.95084399,2562.4,2562.2,0.08245984]
[1646776848930,0.95393259,2562.5,2562.2,0.08245984]
[1646776849130,0.0030886,2562.5,2562.2,0.08245984]
[1646776849330,8.31084399,2562.6,2562.0,1.01223179]
[1646776849331,8.31084399,2562.6,2562.4,0.08245984]
[1646776849729,0.0034106,2562.5,2562.0,1.40403179]
[1646776849929,0.0034106,2562.5,2562.4,0.8195752]
[1646776850129,0.0034106,2562.5,2562.0,0.6918]
[1646776850370,0.0034106,2562.5,2562.3,0.3]
[1646776850570,7.36,2562.6,2562.3,0.3]
[1646776850776,7.36,2562.6,2561.8,0.6918]
[1646776850777,0.00341056,2562.5,2561.8,0.6918]
[1646776850973,0.00341056,2562.5,2562.4,0.08245984]
[1646776851174,0.00341056,2562.5,2561.8,0.3]
[1646776851384,0.00341056,2562.5,2561.7,0.6918]
[1646776851575,0.00341056,2562.5,2561.8,0.89776224]
[1646776851779,0.00173168,2562.8,2562.2,3.0]
[1646776851978,1.42728667,2563.2,2562.2,3.0]
[1646776851979,0.00173168,2563.0,2562.3,4.3618]
[1646776852178,0.00341047,2562.5,2562.3,4.3618]
[1646776852380,1.047e-05,2562.5,2562.4,3.8918]
[1646776852577,1.047e-05,2562.5,2562.4,4.3618]
[1646776852777,1.047e-05,2562.5,2562.4,18.57751]
[1646776852981,0.0136387,2563.1,2562.4,19.3713576]
[1646776853178,0.00646248,2563.6,2562.5,0.3918]
[1646776853383,0.00646248,2563.6,2562.8,0.3918]
[1646776853384,0.0047308,2563.6,2562.8,0.3918]
[1646776853580,0.0047308,2563.6,2563.0,0.3918]
[1646776853777,0.0047308,2563.6,2562.9,3.97]
[1646776853778,0.0047308,2563.6,2563.2,0.3918]
[1646776854036,0.0047308,2563.6,2563.4,0.3918]
[1646776854234,0.0047308,2563.6,2563.5,4.59601428]
[1646776854433,0.00731706,2563.9,2563.7,0.3918]
[1646776854635,0.01677866,2563.9,2563.8,3.8918]
[1646776855039,0.01677866,2563.9,2563.8,4.1918]
[1646776855437,0.01677866,2563.9,2563.8,4.27425984]
[1646776855837,0.95084399,2564.8,2563.9,5.5]
[1646776856041,0.00173168,2564.7,2564.0,3.8918]
[1646776856239,0.03355732,2564.8,2564.0,3.8918]
[1646776856442,0.98440131,2564.8,2564.0,3.8918]
[1646776856640,0.93440131,2564.8,2564.0,3.8918]
[1646776856840,0.00366698,2564.5,2564.0,3.8918]
[1646776857142,0.00366698,2564.5,2564.4,0.81570729]
[1646776857342,0.00366698,2564.5,2564.4,1.11570729]
[1646776857796,0.00366698,2564.5,2564.4,1.50750729]
[1646776857984,0.00366698,2564.5,2564.4,5.00750729]
[1646776858183,0.00366692,2564.6,2564.4,5.47750729]
[1646776858384,0.00366692,2564.6,2564.5,3.8918]
[1646776858588,0.00366692,2564.6,2564.5,5.16674]
[1646776858789,0.00366692,2564.6,2564.5,6.16674]
[1646776858990,0.0073208,2564.9,2564.5,6.16674]
[1646776859190,0.0073208,2564.9,2564.5,5.1918]
[1646776859391,0.00366686,2564.7,2564.5,5.1918]
[1646776859990,0.00366686,2564.7,2564.6,1.05743984]
[1646776860192,0.00366686,2564.7,2564.6,1.35743984]
[1646776860593,0.00366683,2564.7,2564.6,1.35743984]
[1646776861195,0.00366683,2564.7,2564.6,4.55743984]
[1646776861393,0.0073208,2564.9,2564.6,4.94923984]
[1646776861625,0.00321621,2564.8,2564.6,6.33678]
[1646776861826,0.00321621,2564.8,2564.6,2.83678]
[1646776862228,1.621e-05,2564.8,2564.7,3.5]
[1646776862428,1.621e-05,2564.8,2564.7,4.3618]
[1646776862735,0.0073208,2564.9,2564.8,1.20206792]
[1646776862926,0.0073208,2564.9,2564.8,1.67206792]
[1646776863430,0.04787359,2565.2,2565.0,5.8918]
[1646776863431,0.0146416,2565.2,2565.0,5.8918]
[1646776863629,1.54206087,2566.5,2565.2,5.5]
[1646776863630,0.38109918,2565.7,2565.2,5.5]
[1646776863830,0.38109918,2565.7,2565.3,4.3618]
[1646776863831,0.39573198,2565.7,2565.3,4.3618]
[1646776864027,0.39573198,2565.7,2565.3,4.6618]
[1646776864427,0.39573198,2565.7,2565.4,0.92539734]
[1646776864628,0.39573198,2565.7,2565.2,1.6328]
[1646776864826,0.39573198,2565.7,2565.5,0.08245984]
[1646776865031,0.39573198,2565.7,2565.2,1.1328]
[1646776865474,0.39941809,2565.7,2565.2,1.1328]
[1646776866074,0.39941809,2565.7,2565.3,0.3]
[1646776866272,0.39573198,2565.7,2565.3,0.3]
[1646776866476,0.00368617,2565.6,2565.5,0.08245984]
[1646776866675,0.00368617,2565.6,2565.3,0.3]
[1646776866877,0.00368617,2565.6,2565.2,1.134]
[1646776866878,0.01831897,2565.6,2565.2,1.134]
[1646776867582,0.0146328,2565.6,2565.3,3.8]
[1646776867876,0.0146328,2565.6,2565.4,0.08245984]
[1646776867877,0.0036862,2565.5,2565.4,0.08245984]
[1646776868078,0.0036862,2565.5,2565.3,1.12178029]
[1646776868677,0.03755249,2565.6,2565.3,1.12178029]
[1646776868878,0.0036862,2565.5,2565.3,1.12178029]
[1646776869131,0.0036862,2565.5,2565.3,0.3]
[1646776869527,0.0036862,2565.5,2565.4,0.08245984]
[1646776869827,0.0146328,2565.5,2565.4,0.08245984]
[1646776870025,0.0181927,2565.5,2565.4,0.08245984]
[1646776871031,0.0146328,2565.5,2565.4,0.08245984]
[1646776872427,0.01279026,2565.5,2565.4,0.08245984]
[1646776873677,0.0324178,2565.5,2565.4,0.08245984]
[1646776874680,0.0324178,2565.5,2564.6,2.51547]
[1646776874880,3.5,2565.4,2564.3,1.0]
[1646776875082,0.89842756,2565.0,2564.4,3.5]
[1646776875382,0.01261128,2564.6,2563.9,1.2113]
[1646776875782,3.33159128,2564.6,2563.9,0.821]
[1646776875978,0.66625463,2564.4,2563.9,0.821]
[1646776876179,3.5,2564.5,2563.9,0.821]
[1646776876180,0.80403887,2564.0,2563.9,0.821]
[1646776876858,4.30403887,2564.0,2563.9,0.821]
[1646776877255,4.5,2563.9,2562.5,2.99773624]
[1646776877454,4.5,2563.9,2563.7,0.00311999]
[1646776877455,4.50173168,2563.9,2563.7,0.00311999]
[1646776877655,3.5,2563.8,2563.7,0.00311999]
[1646776877855,4.5,2563.8,2563.7,0.00311999]
[1646776878256,0.3918,2563.7,2562.3,0.3898]
[1646776878555,0.70218026,2563.3,2562.3,0.3898]
[1646776878958,0.70218026,2563.3,2562.2,0.81145295]
[1646776879159,0.6918,2563.4,2562.2,0.81145295]
[1646776879365,0.3,2563.5,2562.7,0.3]
[1646776879558,0.39353168,2563.9,2562.7,0.3]
[1646776879759,0.39353168,2563.9,2562.8,0.0031408]
[1646776879760,0.00173168,2563.9,2562.8,0.0031408]
[1646776879960,3.5,2564.0,2562.8,0.4731408]
[1646776880159,3.50173168,2564.4,2563.4,0.80967244]
[1646776880390,3.5,2564.4,2563.4,1.10967244]
[1646776880589,0.02268975,2564.5,2563.4,13.44147244]
[1646776880791,0.02268975,2564.5,2563.5,0.3918]
[1646776880792,0.02442143,2564.5,2563.5,0.3918]
[1646776881089,0.02268975,2564.5,2563.8,0.3918]
[1646776881288,0.02268975,2564.5,2564.1,0.70389144]
[1646776881892,0.02268975,2564.5,2564.1,1.00389144]
[1646776883291,0.3918,2565.0,2564.1,1.00389144]
[1646776883490,0.02266883,2565.1,2564.1,1.00389144]
[1646776884533,0.02266883,2565.1,2563.7,0.8618]
[1646776884729,0.02266883,2565.1,2563.7,1.1618]
[1646776884730,3.52440051,2565.1,2563.7,1.1618]
[1646776885136,1.02440051,2565.1,2563.7,1.1618]
[1646776885335,0.02440051,2565.1,2563.8,0.3918]
[1646776885734,0.02440051,2565.1,2564.2,0.84394643]
[1646776885937,0.02266883,2565.1,2564.2,0.84394643]
[1646776886137,0.02266883,2565.1,2564.2,13.47574643]
[1646776886335,0.02266883,2565.1,2564.2,14.47574643]
[1646776886536,0.02266883,2565.1,2564.2,3.00574643]
[1646776886738,0.02266883,2565.1,2564.2,2.00574643]
[1646776886938,0.02266883,2565.1,2564.2,3.00574643]
[1646776887141,0.02266883,2565.1,2564.8,0.68835729]
[1646776887338,0.02266883,2565.1,2564.8,0.98835729]
[1646776888985,0.23686883,2565.2,2564.8,0.98835729]
[1646776890289,0.16266427,2565.4,2564.8,0.98835729]
[1646776890489,0.00336511,2565.3,2564.8,0.98835729]
[1646776891188,0.00336511,2565.3,2564.2,4.294]
[1646776891389,0.16266427,2565.4,2564.2,4.594]
[1646776891637,0.00336515,2565.3,2564.2,3.594]
[1646776891835,0.00336515,2565.3,2564.2,4.594]
[1646776892036,0.00336515,2565.3,2564.2,4.2022]
[1646776892638,5.43368047,2565.4,2564.2,3.2022]
[1646776892842,0.00325389,2565.3,2564.2,2.4322]
[1646776893038,0.97534,2565.2,2564.0,0.25]
[1646776893237,0.97534,2565.2,2563.8,1.2325]
[1646776893238,3.8918,2565.1,2563.8,1.2325]
[1646776893438,3.89353168,2565.1,2563.8,1.2325]
[1646776893638,1.11957537,2564.8,2563.8,1.2325]
[1646776894842,3.5,2564.7,2563.8,1.2325]
[1646776895039,3.5,2564.7,2563.3,3.4645]
[1646776895040,1.36738,2564.6,2563.3,3.4645]
[1646776895299,0.3918,2564.4,2563.3,1.141]
[1646776895489,3.5,2564.5,2563.3,1.141]
[1646776895490,3.8918,2564.3,2563.3,1.141]
[1646776895692,4.07427346,2564.3,2563.1,0.5]
[1646776895891,0.68735482,2563.8,2563.1,0.5]
[1646776896090,0.97596,2563.6,2563.1,0.5]
[1646776897690,0.97596,2563.6,2563.2,0.00356897]
[1646776898290,0.97596,2563.6,2563.2,0.30356897]
[1646776898690,0.97596,2563.6,2563.2,0.3]
[1646776898890,0.97596,2563.6,2563.3,0.00356894]
[1646776899133,4.8,2563.7,2563.3,0.00356894]
[1646776899337,1.0,2563.7,2563.3,0.00356894]
[1646776899739,0.97583,2563.9,2563.3,0.00356894]
[1646776899936,0.97583,2563.9,2563.2,0.3]
[1646776900140,0.97583,2563.9,2563.4,0.00356888]
[1646776900738,3.5,2563.8,2563.4,0.00356888]
[1646776901137,3.5,2563.8,2563.2,0.3]
[1646776901138,4.5,2563.8,2563.2,0.3]
[1646776901335,4.5,2563.8,2563.5,0.00325284]
[1646776901539,1.0,2563.8,2563.5,0.00325284]
[1646776901741,5.47583,2563.9,2563.5,0.00325284]
[1646776901942,1.97583,2563.9,2563.5,0.00325284]
[1646776902341,0.3,2564.0,2563.5,0.00325284]
[1646776902540,4.43667971,2564.3,2563.6,0.00325282]
[1646776902541,0.3,2564.1,2563.6,0.00325282]
[1646776902796,0.00173168,2564.2,2563.6,0.00325282]
[1646776902983,3.8918,2564.3,2563.6,0.00325282]
[1646776903387,0.3918,2564.4,2563.6,0.00325282]
[1646776903587,0.3918,2564.4,2563.6,0.79094165]
[1646776903787,0.3918,2564.4,2563.7,0.00325287]
[1646776904589,0.3918,2564.4,2563.6,1.09094165]
[1646776904991,0.3918,2564.4,2563.7,0.0031198]
[1646776905397,2.32674803,2564.5,2563.7,0.0031198]
[1646776905791,1.32674803,2564.5,2563.6,1.09094165]
[1646776906090,4.82674803,2564.5,2563.7,0.00311984]
[1646776906290,5.82674803,2564.5,2563.7,0.00311984]
[1646776906735,6.80232803,2564.5,2563.7,0.00311984]
[1646776907137,3.30232803,2564.5,2563.6,1.09094165]
[1646776907338,5.80232803,2564.5,2563.7,0.00311984]
[1646776907539,3.30232803,2564.5,2563.7,0.00311984]
[1646776907738,2.30232803,2564.5,2563.7,0.00311984]
[1646776908043,3.30232803,2564.5,2563.7,0.00311984]
[1646776908240,5.80232803,2564.5,2563.6,1.09094165]
[1646776908437,6.80232803,2564.5,2563.6,1.09094165]
[1646776908638,6.80232803,2564.5,2563.7,0.0031451]
[1646776909140,1.32674803,2564.4,2563.7,0.0031451]
[1646776909438,1.32674803,2564.4,2563.6,1.09094165]
[1646776909439,0.3918,2564.4,2563.6,1.09094165]
[1646776909638,1.32674803,2564.4,2563.7,0.0031451]
[1646776910784,1.32674803,2564.4,2563.6,1.09094165]
[1646776910983,1.32674803,2564.4,2563.7,0.00314507]
[1646776911183,1.32674803,2564.4,2563.7,0.0022501]
[1646776911784,1.32674803,2564.4,2563.6,1.09094165]
[1646776912986,0.93494803,2564.4,2563.6,1.48274165]
[1646776913186,3.21052803,2564.5,2563.6,1.48274165]
[1646776913389,2.23494803,2564.5,2563.6,1.09094165]
[1646776913586,0.93494803,2564.5,2563.6,1.09094165]
[1646776914033,0.93494803,2564.5,2563.6,1.48274165]
[1646776914433,0.93494803,2564.5,2564.0,0.82388194]
[1646776914635,0.93494803,2564.5,2564.0,1.12388194]
[1646776918984,0.93494803,2564.4,2564.0,1.12388194]
[1646776919585,0.93494803,2564.5,2564.0,1.12388194]
[1646776920586,0.93494803,2564.4,2564.0,1.12388194]
[1646776921388,0.93494803,2564.3,2564.0,0.3]
[1646776921939,0.93494803,2564.3,2563.8,0.00358273]
[1646776922138,0.93494803,2564.3,2563.8,0.30358273]
[1646776922340,0.93494803,2564.3,2563.8,0.00358273]
[1646776922740,0.93494803,2564.3,2563.7,0.80502282]
[1646776922940,0.93494803,2564.3,2563.8,0.00358261]
[1646776923942,0.93494803,2564.3,2563.7,0.80502282]
[1646776924142,0.93494803,2564.3,2563.8,0.003417]
[1646776925045,0.93494803,2564.3,2563.7,0.80502282]
[1646776925296,0.93494803,2564.3,2563.8,0.003417]
[1646776926292,0.93494803,2564.3,2563.7,0.80502282]
[1646776926489,0.93494803,2564.3,2563.8,0.003417]
[1646776927293,0.93494803,2564.1,2563.8,0.003417]
[1646776927490,0.93494803,2564.1,2563.3,0.25]
[1646776927491,0.00296,2563.6,2563.3,0.25]
[1646776927692,0.00296,2563.6,2563.1,3.5236]
[1646776927893,0.00296,2563.6,2563.1,3.8236]
[1646776928092,0.00296,2563.6,2563.1,1.5418]
[1646776928692,0.00296,2563.6,2563.2,0.76555251]
[1646776929136,0.00296,2563.6,2563.2,0.76899035]
[1646776929941,0.00296,2563.6,2563.2,0.76555251]
[1646776930139,0.00296,2563.6,2563.3,0.00343782]
[1646776930539,0.006377,2563.8,2563.3,0.00343782]
[1646776931140,0.94132503,2563.8,2563.2,0.76555251]
[1646776931339,0.006377,2563.8,2563.4,0.00343473]
[1646776932345,0.006377,2563.8,2563.2,0.76555251]
[1646776932545,0.94132503,2563.8,2563.5,0.00343471]
[1646776933588,0.94132503,2563.8,2563.2,0.76555251]
[1646776933789,0.94132503,2563.8,2563.5,0.00343469]
[1646776934391,0.006377,2563.8,2563.5,0.00343469]
[1646776934892,0.006377,2563.8,2563.3,1.89530552]
[1646776935193,0.006377,2563.8,2563.2,1.62735251]
[1646776935194,0.006377,2563.8,2563.5,0.00224177]
[1646776935391,0.006377,2563.8,2563.5,0.39404177]
[1646776935590,0.006377,2563.8,2563.6,0.80532428]
[1646776937339,0.006377,2563.8,2563.1,4.8075]
[1646776937540,4.44132503,2563.8,2563.2,1.5952859]
[1646776937740,0.93494803,2563.7,2563.2,1.5952859]
[1646776937942,0.93494803,2563.7,2563.1,2.7443]
[1646776938140,0.93494803,2563.6,2563.1,0.3]
[1646776938341,0.93494803,2563.7,2562.8,4.97632895]
[1646776938542,0.93494803,2563.7,2563.3,0.00369356]
[1646776939446,0.93494803,2563.7,2562.9,1.59535567]
[1646776939643,0.93790803,2563.6,2562.9,1.59535567]
[1646776939842,0.93790803,2563.6,2563.4,0.00369353]
[1646776940300,0.00296,2563.6,2563.4,0.00369353]
[1646776940691,0.00296,2563.6,2562.9,1.59535567]
[1646776940890,0.00296,2563.6,2563.4,0.00369353]
[1646776941894,0.00296,2563.6,2562.9,1.59535567]
[1646776942296,0.00296,2563.6,2563.4,0.00369353]
[1646776943295,0.00296,2563.6,2563.4,0.00726517]
[1646776943496,0.00296,2563.6,2563.4,0.00357164]
[1646776944338,0.00296,2563.6,2562.9,1.59534332]
[1646776944536,0.00296,2563.6,2563.4,0.00357164]
[1646776944742,0.93790803,2563.6,2563.4,0.00357164]
[1646776945540,0.93790803,2563.6,2562.9,1.59534332]
[1646776945739,0.93790803,2563.6,2563.4,0.00357164]
[1646776946743,0.93790803,2563.6,2563.2,1.08568762]
[1646776946944,0.93790803,2563.6,2563.4,0.00341878]
[1646776947889,0.93790803,2563.6,2563.2,1.08568762]
[1646776948085,0.00296,2563.6,2563.4,0.00341878]
[1646776949188,0.93790803,2563.6,2563.2,1.08568762]
[1646776949385,0.00296,2563.6,2563.4,0.00341878]